[Event "*** Titled Tuesday Blitz"]
[Site "Chess.com"]
[Date "2020.04.07"]
[Round "7"]
[White "thedjoker98"]
[Black "Dare-Dare"]
[Result "1-0"]
[WhiteElo "2473"]
[BlackElo "2171"]
[TimeControl "180+1"]
[EndTime "14:15:58 PDT"]
[Termination "thedjoker98 won by resignation"]

1. d4 {[%clk 0:03:00.9]} 1... d6 {[%clk 0:02:59.8]} 2. e4 {[%clk 0:02:58.8]}
2... e5 {[%clk 0:02:59.9]} 3. dxe5 {[%clk 0:02:57.3]} 3... dxe5 {[%clk
0:03:00.8]} 4. Qxd8+ {[%clk 0:02:57.8]} 4... Kxd8 {[%clk 0:03:01.7]} 5. Nf3
{[%clk 0:02:57.3]} 5... f6 {[%clk 0:03:00.8]} 6. Be3 {[%clk 0:02:53.5]} 6... Be6
{[%clk 0:03:00.4]} 7. Nbd2 {[%clk 0:02:53.1]} 7... Nd7 {[%clk 0:03:00.3]} 8. Bc4
{[%clk 0:02:53.2]} 8... Bxc4 {[%clk 0:02:56.2]} 9. Nxc4 {[%clk 0:02:54.1]} 9...
c6 {[%clk 0:02:53]} 10. O-O-O {[%clk 0:02:53.7]} 10... Kc7 {[%clk 0:02:52.8]}
11. Rd2 {[%clk 0:02:52.2]} 11... Nc5 {[%clk 0:01:44.3]} 12. Rhd1 {[%clk
0:02:49.8]} 12... Rc8 {[%clk 0:01:41.7]} 13. Bxc5 {[%clk 0:02:46.5]} 13... Bxc5
{[%clk 0:01:39.7]} 14. Rd7+ {[%clk 0:02:46.5]} 14... Kb8 {[%clk 0:01:39.8]} 15.
Rxg7 {[%clk 0:02:42]} 15... Ne7 {[%clk 0:01:34.4]} 16. Rd7 {[%clk 0:02:40.2]}
16... Rc7 {[%clk 0:01:33.9]} 17. Rxc7 {[%clk 0:02:33.7]} 17... Kxc7 {[%clk
0:01:34.8]} 18. c3 {[%clk 0:02:33.8]} 18... Kd7 {[%clk 0:01:18]} 19. Ne3 {[%clk
0:02:32]} 19... Bxe3+ {[%clk 0:01:16.4]} 20. fxe3 {[%clk 0:02:32.9]} 20... Ke6
{[%clk 0:01:16.4]} 21. Kc2 {[%clk 0:02:29.3]} 21... Rg8 {[%clk 0:01:15.7]} 22.
Rxg8 {[%clk 0:02:28.3]} 22... Nxg8 {[%clk 0:01:15.9]} 23. Nh4 {[%clk 0:02:28]}
23... Ne7 {[%clk 0:01:15.5]} 24. g4 {[%clk 0:02:28.2]} 24... b6 {[%clk 0:01:03]}
25. Nf5 {[%clk 0:02:27.8]} 25... Ng6 {[%clk 0:01:02.8]} 26. h4 {[%clk
0:02:23.3]} 26... Nf8 {[%clk 0:01:01.7]} 27. b4 {[%clk 0:02:18.3]} 27... Nd7
{[%clk 0:01:01.2]} 28. a4 {[%clk 0:02:17.9]} 28... a5 {[%clk 0:00:59.5]} 29. Kb3
{[%clk 0:02:16.2]} 29... c5 {[%clk 0:00:51.1]} 30. bxa5 {[%clk 0:02:12.6]} 1-0

[Event "*** Titled Tuesday Blitz"]
[Site "Chess.com"]
[Date "2020.04.07"]
[Round "7"]
[White "AliKa2810"]
[Black "anon219"]
[Result "0-1"]
[WhiteElo "2608"]
[BlackElo "2803"]
[TimeControl "180+1"]
[EndTime "14:16:05 PDT"]
[Termination "anon219 won by resignation"]

1. d4 {[%clk 0:03:00.9]} 1... d5 {[%clk 0:02:59.6]} 2. c4 {[%clk 0:03:00.9]}
2... e6 {[%clk 0:03:00.2]} 3. Nc3 {[%clk 0:03:00.7]} 3... Bb4 {[%clk 0:03:00.5]}
4. cxd5 {[%clk 0:02:59.7]} 4... exd5 {[%clk 0:03:01.4]} 5. Bf4 {[%clk
0:03:00.2]} 5... c5 {[%clk 0:03:00.3]} 6. dxc5 {[%clk 0:02:44.6]} 6... Nf6
{[%clk 0:02:59.7]} 7. e3 {[%clk 0:02:42.5]} 7... O-O {[%clk 0:02:59]} 8. Bd3
{[%clk 0:02:40.5]} 8... Nc6 {[%clk 0:02:58.7]} 9. Nf3 {[%clk 0:02:30.2]} 9...
Bxc5 {[%clk 0:02:56.9]} 10. O-O {[%clk 0:02:30.1]} 10... d4 {[%clk 0:02:51.9]}
11. Na4 {[%clk 0:02:28.9]} 11... Bd6 {[%clk 0:02:49.3]} 12. Bxd6 {[%clk
0:02:27]} 12... Qxd6 {[%clk 0:02:50.2]} 13. Nxd4 {[%clk 0:02:23.2]} 13... Nxd4
{[%clk 0:02:49.4]} 14. exd4 {[%clk 0:02:23.4]} 14... Bg4 {[%clk 0:02:49.4]} 15.
Be2 {[%clk 0:02:15.6]} 15... Bxe2 {[%clk 0:02:46.6]} 16. Qxe2 {[%clk 0:02:15.7]}
16... Qxd4 {[%clk 0:02:47.2]} 17. Nc3 {[%clk 0:02:15.9]} 17... Rfe8 {[%clk
0:02:47.3]} 18. Qf3 {[%clk 0:02:16.1]} 18... Qb6 {[%clk 0:02:46.3]} 19. h3
{[%clk 0:02:04.3]} 19... Qxb2 {[%clk 0:02:38.4]} 20. Rab1 {[%clk 0:02:02.5]}
20... Qa3 {[%clk 0:02:38.4]} 21. Rxb7 {[%clk 0:01:52.5]} 21... Rac8 {[%clk
0:02:38]} 22. Rb3 {[%clk 0:01:52.1]} 22... Qa5 {[%clk 0:02:36.7]} 23. Rd1 {[%clk
0:01:47.5]} 23... h6 {[%clk 0:02:31.2]} 24. g3 {[%clk 0:01:35.5]} 24... Qe5
{[%clk 0:02:17.5]} 25. Kg2 {[%clk 0:01:33.9]} 25... Re6 {[%clk 0:02:12.5]} 26.
Nd5 {[%clk 0:01:25.3]} 26... Ne4 {[%clk 0:02:05.7]} 27. h4 {[%clk 0:01:12.9]}
27... Rc2 {[%clk 0:02:01.9]} 28. Rf1 {[%clk 0:00:54.8]} 28... Qxd5 {[%clk
0:01:58.2]} 29. Rb8+ {[%clk 0:00:54]} 29... Kh7 {[%clk 0:01:57.6]} 30. Qxf7
{[%clk 0:00:50.9]} 30... Ng5+ {[%clk 0:01:56.4]} 0-1

[Event "*** Titled Tuesday Blitz"]
[Site "Chess.com"]
[Date "2020.04.07"]
[Round "7"]
[White "northridgehawk"]
[Black "stolencandy13"]
[Result "0-1"]
[WhiteElo "2300"]
[BlackElo "2437"]
[TimeControl "180+1"]
[EndTime "14:16:09 PDT"]
[Termination "stolencandy13 won by checkmate"]

1. e4 {[%clk 0:03:00.7]} 1... c6 {[%clk 0:03:00.3]} 2. d4 {[%clk 0:02:52.2]}
2... d5 {[%clk 0:03:01.2]} 3. e5 {[%clk 0:02:49.7]} 3... Bf5 {[%clk 0:03:01]} 4.
Nf3 {[%clk 0:02:46.4]} 4... e6 {[%clk 0:03:01.1]} 5. Be2 {[%clk 0:02:45.2]} 5...
Nd7 {[%clk 0:02:58.9]} 6. O-O {[%clk 0:02:44.8]} 6... Bg6 {[%clk 0:02:59.5]} 7.
Re1 {[%clk 0:02:39.2]} 7... Nh6 {[%clk 0:02:59.5]} 8. Nbd2 {[%clk 0:02:36.4]}
8... Nf5 {[%clk 0:02:57.5]} 9. Nf1 {[%clk 0:02:35.8]} 9... Be7 {[%clk
0:02:56.8]} 10. c4 {[%clk 0:02:30.7]} 10... Rc8 {[%clk 0:02:52.4]} 11. b3 {[%clk
0:02:30.8]} 11... O-O {[%clk 0:02:47.2]} 12. g4 {[%clk 0:02:06.3]} 12... Nh4
{[%clk 0:02:47]} 13. Nxh4 {[%clk 0:02:06.7]} 13... Bxh4 {[%clk 0:02:47.9]} 14.
Ng3 {[%clk 0:02:07.1]} 14... dxc4 {[%clk 0:02:24.4]} 15. bxc4 {[%clk 0:02:05.8]}
15... c5 {[%clk 0:02:22.3]} 16. Ba3 {[%clk 0:02:02.7]} 16... Qa5 {[%clk
0:02:10.7]} 17. Qb3 {[%clk 0:01:49.9]} 17... b6 {[%clk 0:02:01.5]} 18. Bf3
{[%clk 0:01:46.3]} 18... Rfe8 {[%clk 0:01:31]} 19. Rad1 {[%clk 0:01:13.2]} 19...
cxd4 {[%clk 0:01:30.4]} 20. Bd6 {[%clk 0:01:12.9]} 20... d3 {[%clk 0:01:25.1]}
21. Ne4 {[%clk 0:01:11.5]} 21... Bxe4 {[%clk 0:01:20.2]} 22. Rxe4 {[%clk
0:01:11.1]} 22... Nc5 {[%clk 0:01:17.4]} 23. Bxc5 {[%clk 0:01:10.7]} 23... Qxc5
{[%clk 0:01:17.1]} 24. Rxd3 {[%clk 0:01:10.2]} 24... Qxf2+ {[%clk 0:01:14.8]}
25. Kh1 {[%clk 0:01:10.6]} 25... Qf1# {[%clk 0:01:15.1]} 0-1

[Event "*** Titled Tuesday Blitz"]
[Site "Chess.com"]
[Date "2020.04.07"]
[Round "7"]
[White "OhanyanEminChess"]
[Black "AyMitecK"]
[Result "1-0"]
[WhiteElo "2560"]
[BlackElo "2287"]
[TimeControl "180+1"]
[EndTime "14:16:20 PDT"]
[Termination "OhanyanEminChess won by resignation"]

1. e4 {[%clk 0:03:00.9]} 1... g6 {[%clk 0:02:59.2]} 2. d4 {[%clk 0:02:56.6]}
2... Bg7 {[%clk 0:02:57.9]} 3. Nc3 {[%clk 0:02:55.6]} 3... c6 {[%clk 0:02:57.1]}
4. Nf3 {[%clk 0:02:41.3]} 4... d5 {[%clk 0:02:56.1]} 5. Bd3 {[%clk 0:02:37.6]}
5... Bg4 {[%clk 0:02:32.9]} 6. Be3 {[%clk 0:02:32.5]} 6... dxe4 {[%clk
0:02:27.4]} 7. Nxe4 {[%clk 0:02:29.5]} 7... Bxf3 {[%clk 0:02:21.3]} 8. Qxf3
{[%clk 0:02:30.4]} 8... Nf6 {[%clk 0:02:08.4]} 9. Nxf6+ {[%clk 0:02:26.6]} 9...
exf6 {[%clk 0:02:06.6]} 10. O-O-O {[%clk 0:02:27.5]} 10... O-O {[%clk
0:02:06.9]} 11. h4 {[%clk 0:02:27.2]} 11... Qa5 {[%clk 0:02:01.9]} 12. Kb1
{[%clk 0:02:17.5]} 12... Na6 {[%clk 0:01:45.1]} 13. c3 {[%clk 0:02:09.4]} 13...
b5 {[%clk 0:01:33.7]} 14. h5 {[%clk 0:02:07.3]} 14... f5 {[%clk 0:00:33.3]} 15.
hxg6 {[%clk 0:02:05.1]} 15... hxg6 {[%clk 0:00:30.8]} 16. Qh3 {[%clk 0:02:01.7]}
16... f6 {[%clk 0:00:30.6]} 17. Bc2 {[%clk 0:01:59.4]} 17... Rfe8 {[%clk
0:00:15.5]} 18. Bb3+ {[%clk 0:01:57.8]} 18... Kf8 {[%clk 0:00:15.8]} 19. Bh6
{[%clk 0:01:54.9]} 19... Bxh6 {[%clk 0:00:10.4]} 20. Qxh6+ {[%clk 0:01:52.2]}
20... Ke7 {[%clk 0:00:11.3]} 21. Qxg6 {[%clk 0:01:51.5]} 1-0

[Event "*** Titled Tuesday Blitz"]
[Site "Chess.com"]
[Date "2020.04.07"]
[Round "7"]
[White "LiemLe"]
[Black "chessintuit"]
[Result "1-0"]
[WhiteElo "2942"]
[BlackElo "2614"]
[TimeControl "180+1"]
[EndTime "14:16:35 PDT"]
[Termination "LiemLe won by resignation"]

1. e4 {[%clk 0:03:00.9]} 1... e5 {[%clk 0:03:00]} 2. Nf3 {[%clk 0:03:00.4]} 2...
Nc6 {[%clk 0:03:00.6]} 3. Bb5 {[%clk 0:03:00.1]} 3... a6 {[%clk 0:03:01.2]} 4.
Ba4 {[%clk 0:03:00.1]} 4... Nf6 {[%clk 0:03:01.5]} 5. O-O {[%clk 0:03:00.4]}
5... Be7 {[%clk 0:03:02.1]} 6. Re1 {[%clk 0:03:00.3]} 6... b5 {[%clk 0:03:02.1]}
7. Bb3 {[%clk 0:03:00.9]} 7... d6 {[%clk 0:03:02.7]} 8. c3 {[%clk 0:03:00.3]}
8... O-O {[%clk 0:03:03.2]} 9. h3 {[%clk 0:03:00.6]} 9... Bb7 {[%clk 0:03:03.8]}
10. d4 {[%clk 0:03:00.5]} 10... Nd7 {[%clk 0:03:04.5]} 11. a4 {[%clk 0:02:53.5]}
11... Na5 {[%clk 0:03:03.8]} 12. Bc2 {[%clk 0:02:45]} 12... c5 {[%clk 0:03:04]}
13. d5 {[%clk 0:02:34.7]} 13... c4 {[%clk 0:03:04.2]} 14. Na3 {[%clk 0:02:30.1]}
14... Qb6 {[%clk 0:02:55.5]} 15. Be3 {[%clk 0:02:25.9]} 15... Nc5 {[%clk
0:02:55.7]} 16. Nd2 {[%clk 0:02:26.5]} 16... Bc8 {[%clk 0:02:43]} 17. b4 {[%clk
0:02:11]} 17... cxb3 {[%clk 0:02:41]} 18. Nxb3 {[%clk 0:02:06.8]} 18... Naxb3
{[%clk 0:02:41]} 19. Bxb3 {[%clk 0:02:06.3]} 19... Bd7 {[%clk 0:02:38.3]} 20.
Bc2 {[%clk 0:01:53.1]} 20... Qc7 {[%clk 0:02:37.4]} 21. Qe2 {[%clk 0:01:50.3]}
21... bxa4 {[%clk 0:02:31.8]} 22. Reb1 {[%clk 0:01:47.3]} 22... Rfb8 {[%clk
0:02:28]} 23. Qd1 {[%clk 0:01:38.3]} 23... Qa5 {[%clk 0:02:16]} 24. Nc4 {[%clk
0:01:25.5]} 24... Qxc3 {[%clk 0:02:03.2]} 25. Nb6 {[%clk 0:01:24.1]} 25... Ra7
{[%clk 0:02:03.4]} 26. Bd2 {[%clk 0:01:14.2]} 26... Qd4 {[%clk 0:01:59.8]} 27.
Rb4 {[%clk 0:01:14.3]} 27... Rxb6 {[%clk 0:01:48.5]} 28. Rxb6 {[%clk 0:01:15.2]}
28... Nb3 {[%clk 0:01:33.3]} 29. Rb8+ {[%clk 0:01:13.6]} 29... Bf8 {[%clk
0:01:33.9]} 30. Bxb3 {[%clk 0:01:07.3]} 30... axb3 {[%clk 0:01:34.8]} 31. Bb4
{[%clk 0:01:00.9]} 31... b2 {[%clk 0:01:28.3]} 32. Bxd6 {[%clk 0:00:58.8]} 32...
h6 {[%clk 0:01:14.2]} 33. Qxd4 {[%clk 0:00:56.5]} 1-0

[Event "*** Titled Tuesday Blitz"]
[Site "Chess.com"]
[Date "2020.04.07"]
[Round "7"]
[White "CakeinSpace2002"]
[Black "ahappypawn"]
[Result "1-0"]
[WhiteElo "2189"]
[BlackElo "2322"]
[TimeControl "180+1"]
[EndTime "14:16:38 PDT"]
[Termination "CakeinSpace2002 won by resignation"]

1. d4 {[%clk 0:03:00.9]} 1... d5 {[%clk 0:00:02.8]} 2. Bf4 {[%clk 0:02:58.8]}
2... Nf6 {[%clk 0:00:02]} 3. e3 {[%clk 0:02:58.9]} 3... c6 {[%clk 0:00:02.4]} 4.
Nf3 {[%clk 0:02:57.3]} 4... g6 {[%clk 0:00:03.3]} 5. Be2 {[%clk 0:02:52.2]} 5...
Bg7 {[%clk 0:00:04.2]} 6. O-O {[%clk 0:02:53]} 6... O-O {[%clk 0:00:04.1]} 7. h3
{[%clk 0:02:53.4]} 7... Nbd7 {[%clk 0:00:04.7]} 8. c4 {[%clk 0:02:52.7]} 8... e6
{[%clk 0:00:05.6]} 9. Nc3 {[%clk 0:02:52]} 9... Re8 {[%clk 0:00:06.5]} 10. Rc1
{[%clk 0:02:50.1]} 10... Nh5 {[%clk 0:00:07.4]} 11. Bh2 {[%clk 0:02:49.2]} 11...
dxc4 {[%clk 0:00:08.3]} 12. Bxc4 {[%clk 0:02:48.2]} 12... Ndf6 {[%clk
0:00:08.3]} 13. g4 {[%clk 0:02:45.7]} 13... b5 {[%clk 0:00:08.6]} 14. Be2 {[%clk
0:02:43.6]} 14... b4 {[%clk 0:00:08.9]} 15. Na4 {[%clk 0:02:42.8]} 15... Nd5
{[%clk 0:00:06.3]} 16. gxh5 {[%clk 0:02:42]} 16... Qa5 {[%clk 0:00:06.6]} 17.
hxg6 {[%clk 0:02:39]} 17... hxg6 {[%clk 0:00:06.1]} 18. Be5 {[%clk 0:02:33]}
18... f6 {[%clk 0:00:05.3]} 19. Bg3 {[%clk 0:02:31.6]} 19... Bd7 {[%clk
0:00:05.7]} 20. Nc5 {[%clk 0:02:30.3]} 20... Rad8 {[%clk 0:00:05.1]} 21. Nxd7
{[%clk 0:02:27.7]} 21... Rxd7 {[%clk 0:00:05.1]} 22. Qb3 {[%clk 0:02:28]} 22...
Qb6 {[%clk 0:00:04.3]} 23. Rc2 {[%clk 0:02:26]} 23... a5 {[%clk 0:00:04.4]} 24.
Rfc1 {[%clk 0:02:25.3]} 24... Rc8 {[%clk 0:00:04.9]} 25. Qa4 {[%clk 0:02:21.6]}
25... Ne7 {[%clk 0:00:04]} 26. Nd2 {[%clk 0:02:16.1]} 26... Kf7 {[%clk
0:00:04.2]} 27. Ne4 {[%clk 0:02:15.8]} 27... Nd5 {[%clk 0:00:02.7]} 28. Nd6+
{[%clk 0:02:14.3]} 28... Rxd6 {[%clk 0:00:02.4]} 29. Bxd6 {[%clk 0:02:14.8]}
29... e5 {[%clk 0:00:02.2]} 30. Rxc6 {[%clk 0:02:12.7]} 30... Rxc6 {[%clk
0:00:01.5]} 31. Qxc6 {[%clk 0:02:11.8]} 31... Qxc6 {[%clk 0:00:01.5]} 32. Rxc6
{[%clk 0:02:11.9]} 1-0

[Event "*** Titled Tuesday Blitz"]
[Site "Chess.com"]
[Date "2020.04.07"]
[Round "7"]
[White "KuzubovYuriy"]
[Black "Jospem"]
[Result "1/2-1/2"]
[WhiteElo "2834"]
[BlackElo "2927"]
[TimeControl "180+1"]
[EndTime "14:16:42 PDT"]
[Termination "Game drawn by agreement"]

1. d4 {[%clk 0:03:00.9]} 1... Nf6 {[%clk 0:03:00]} 2. Nf3 {[%clk 0:03:01.1]}
2... e6 {[%clk 0:03:00.4]} 3. c4 {[%clk 0:03:01.2]} 3... Bb4+ {[%clk 0:02:59.6]}
4. Bd2 {[%clk 0:03:01.1]} 4... c5 {[%clk 0:02:59.6]} 5. Bxb4 {[%clk 0:02:55.9]}
5... cxb4 {[%clk 0:03:00.5]} 6. g3 {[%clk 0:02:56.7]} 6... b6 {[%clk 0:03:00.6]}
7. Bg2 {[%clk 0:02:56.9]} 7... Bb7 {[%clk 0:03:01.1]} 8. a3 {[%clk 0:02:56.6]}
8... bxa3 {[%clk 0:02:54]} 9. Rxa3 {[%clk 0:02:57.5]} 9... a5 {[%clk 0:02:53.2]}
10. Nc3 {[%clk 0:02:56.7]} 10... Na6 {[%clk 0:02:53.2]} 11. O-O {[%clk
0:02:52.7]} 11... O-O {[%clk 0:02:53.3]} 12. Qb1 {[%clk 0:02:48.9]} 12... Rc8
{[%clk 0:02:48.4]} 13. Nd2 {[%clk 0:02:25.2]} 13... Bxg2 {[%clk 0:02:46.7]} 14.
Kxg2 {[%clk 0:02:26.1]} 14... d5 {[%clk 0:02:40.4]} 15. cxd5 {[%clk 0:02:19.1]}
15... Nxd5 {[%clk 0:02:41.3]} 16. Nxd5 {[%clk 0:02:15.1]} 16... Qxd5+ {[%clk
0:02:42.2]} 17. Nf3 {[%clk 0:02:15.2]} 17... Nb4 {[%clk 0:02:39.7]} 18. Rc3
{[%clk 0:02:09.3]} 18... Qa2 {[%clk 0:02:26.2]} 19. Rxc8 {[%clk 0:01:42.8]}
19... Rxc8 {[%clk 0:02:25]} 20. Rc1 {[%clk 0:01:43.5]} 20... Rxc1 {[%clk
0:02:01.9]} 21. Qxc1 {[%clk 0:01:44.4]} 21... h6 {[%clk 0:02:02.8]} 22. Qc8+
{[%clk 0:01:04.6]} 22... Kh7 {[%clk 0:02:02.9]} 23. Qb7 {[%clk 0:01:04.1]} 23...
Qxb2 {[%clk 0:01:59.7]} 24. Qe4+ {[%clk 0:01:03.9]} 24... Kg8 {[%clk 0:01:15.3]}
25. Qa8+ {[%clk 0:00:59.4]} 25... Kh7 {[%clk 0:01:15.3]} 26. Qe4+ {[%clk
0:00:59.9]} 1/2-1/2

[Event "*** Titled Tuesday Blitz"]
[Site "Chess.com"]
[Date "2020.04.07"]
[Round "7"]
[White "Training_Day"]
[Black "jmduque"]
[Result "1/2-1/2"]
[WhiteElo "2341"]
[BlackElo "2508"]
[TimeControl "180+1"]
[EndTime "14:16:44 PDT"]
[Termination "Game drawn by repetition"]

1. e4 {[%clk 0:03:00.9]} 1... c5 {[%clk 0:02:54.5]} 2. c3 {[%clk 0:03:00.6]}
2... a6 {[%clk 0:02:52.1]} 3. d4 {[%clk 0:03:00]} 3... cxd4 {[%clk 0:02:52.5]}
4. cxd4 {[%clk 0:03:00.9]} 4... d5 {[%clk 0:02:53.2]} 5. exd5 {[%clk 0:02:59.7]}
5... Nf6 {[%clk 0:02:53.1]} 6. Nc3 {[%clk 0:02:56.4]} 6... g6 {[%clk 0:02:52.5]}
7. Qb3 {[%clk 0:02:47.7]} 7... Bg7 {[%clk 0:02:49.1]} 8. Be2 {[%clk 0:02:46]}
8... O-O {[%clk 0:02:45]} 9. Bf3 {[%clk 0:02:46]} 9... Nbd7 {[%clk 0:02:43.3]}
10. Nge2 {[%clk 0:02:45.3]} 10... Nb6 {[%clk 0:02:40.8]} 11. O-O {[%clk
0:02:40.4]} 11... Bg4 {[%clk 0:02:40.8]} 12. Bxg4 {[%clk 0:02:28.7]} 12... Nxg4
{[%clk 0:02:41.7]} 13. Bf4 {[%clk 0:02:24.4]} 13... Nf6 {[%clk 0:02:38.1]} 14.
Be5 {[%clk 0:02:16.8]} 14... Nfxd5 {[%clk 0:02:37.4]} 15. Bxg7 {[%clk
0:02:14.6]} 15... Kxg7 {[%clk 0:02:37.2]} 16. Nxd5 {[%clk 0:02:03.3]} 16... Nxd5
{[%clk 0:02:38.1]} 17. Qxb7 {[%clk 0:02:00.7]} 17... Qd6 {[%clk 0:02:38.1]} 18.
Nc3 {[%clk 0:01:37.9]} 18... Nf4 {[%clk 0:02:35.1]} 19. Qe4 {[%clk 0:01:34.3]}
19... Rab8 {[%clk 0:02:28.7]} 20. Rab1 {[%clk 0:01:24.9]} 20... Rfc8 {[%clk
0:02:27.5]} 21. Rfd1 {[%clk 0:01:21]} 21... e6 {[%clk 0:02:23.8]} 22. g3 {[%clk
0:01:11.7]} 22... Nh5 {[%clk 0:02:21.8]} 23. Qe5+ {[%clk 0:01:09]} 23... Qxe5
{[%clk 0:02:22.2]} 24. dxe5 {[%clk 0:01:08.6]} 24... Rc5 {[%clk 0:02:22.7]} 25.
f4 {[%clk 0:01:06.5]} 25... Rb4 {[%clk 0:02:20.9]} 26. a3 {[%clk 0:00:43.3]}
26... Rbc4 {[%clk 0:02:21.1]} 27. Rd2 {[%clk 0:00:35.9]} 27... g5 {[%clk
0:02:21.4]} 28. fxg5 {[%clk 0:00:31]} 28... Rxe5 {[%clk 0:02:20.7]} 29. Rf1
{[%clk 0:00:28.2]} 29... Rxg5 {[%clk 0:02:20.4]} 30. Rd7 {[%clk 0:00:27.4]}
30... Nf6 {[%clk 0:02:16.7]} 31. Ra7 {[%clk 0:00:27]} 31... a5 {[%clk
0:02:15.9]} 32. Kg2 {[%clk 0:00:25.1]} 32... h5 {[%clk 0:02:15.7]} 33. h3 {[%clk
0:00:24.1]} 33... h4 {[%clk 0:02:14.6]} 34. g4 {[%clk 0:00:24]} 34... Re5 {[%clk
0:02:01.9]} 35. Rf2 {[%clk 0:00:23.1]} 35... Re3 {[%clk 0:02:01]} 36. Kh2 {[%clk
0:00:21.7]} 36... Re5 {[%clk 0:01:57.1]} 37. Kg2 {[%clk 0:00:20.2]} 37... Re3
{[%clk 0:01:56.6]} 38. Kh2 {[%clk 0:00:20.3]} 38... Re5 {[%clk 0:01:57]} 39. Kg2
{[%clk 0:00:20.1]} 1/2-1/2

[Event "*** Titled Tuesday Blitz"]
[Site "Chess.com"]
[Date "2020.04.07"]
[Round "7"]
[White "nurgyulsalimova"]
[Black "powermove"]
[Result "1-0"]
[WhiteElo "2558"]
[BlackElo "1505"]
[TimeControl "180+1"]
[EndTime "14:16:45 PDT"]
[Termination "nurgyulsalimova won by resignation"]

1. d4 {[%clk 0:03:00.9]} 1... Nf6 {[%clk 0:02:59]} 2. Nf3 {[%clk 0:02:59]} 2...
c5 {[%clk 0:02:58.1]} 3. d5 {[%clk 0:02:57.4]} 3... b5 {[%clk 0:02:57.7]} 4. g3
{[%clk 0:02:54.9]} 4... Bb7 {[%clk 0:02:26]} 5. c4 {[%clk 0:02:53.8]} 5... bxc4
{[%clk 0:02:24.4]} 6. Nc3 {[%clk 0:02:53.5]} 6... g6 {[%clk 0:02:23.1]} 7. e4
{[%clk 0:02:50.6]} 7... d6 {[%clk 0:02:22]} 8. Bg2 {[%clk 0:02:46.5]} 8... Bg7
{[%clk 0:02:19.8]} 9. O-O {[%clk 0:02:45.8]} 9... Nbd7 {[%clk 0:02:17.7]} 10.
Qe2 {[%clk 0:02:39.4]} 10... Nb6 {[%clk 0:02:14]} 11. Bf4 {[%clk 0:02:36.7]}
11... O-O {[%clk 0:02:13.3]} 12. Rad1 {[%clk 0:02:32.6]} 12... a5 {[%clk
0:02:05.1]} 13. Rfe1 {[%clk 0:02:27.3]} 13... a4 {[%clk 0:01:49.4]} 14. a3
{[%clk 0:02:24.8]} 14... Rb8 {[%clk 0:01:06]} 15. Qd2 {[%clk 0:02:15.7]} 15...
Nbd7 {[%clk 0:00:58]} 16. e5 {[%clk 0:02:13.2]} 16... dxe5 {[%clk 0:00:56]} 17.
Nxe5 {[%clk 0:02:13.1]} 17... Nxe5 {[%clk 0:00:53.9]} 18. Bxe5 {[%clk
0:02:12.1]} 18... Ra8 {[%clk 0:00:52.3]} 19. Qe2 {[%clk 0:02:02.1]} 19... Qb6
{[%clk 0:00:38.6]} 20. Qxc4 {[%clk 0:01:59.9]} 20... Ng4 {[%clk 0:00:35]} 21.
Qxg4 {[%clk 0:01:52]} 21... Bxe5 {[%clk 0:00:33.1]} 22. Rxe5 {[%clk 0:01:50.8]}
22... Qxb2 {[%clk 0:00:33.3]} 23. Rxe7 {[%clk 0:01:48.3]} 23... Rab8 {[%clk
0:00:26.1]} 24. Qc4 {[%clk 0:01:41.7]} 24... Qxa3 {[%clk 0:00:22.3]} 25. Nxa4
{[%clk 0:01:38.8]} 1-0

[Event "*** Titled Tuesday Blitz"]
[Site "Chess.com"]
[Date "2020.04.07"]
[Round "7"]
[White "elohunter1999"]
[Black "Misticpikachu"]
[Result "1-0"]
[WhiteElo "2479"]
[BlackElo "2239"]
[TimeControl "180+1"]
[EndTime "14:16:47 PDT"]
[Termination "elohunter1999 won by checkmate"]

1. e4 {[%clk 0:03:00.9]} 1... c5 {[%clk 0:02:59.3]} 2. Nf3 {[%clk 0:03:00.8]}
2... Nc6 {[%clk 0:02:58]} 3. d4 {[%clk 0:03:01.2]} 3... cxd4 {[%clk 0:02:58.5]}
4. Nxd4 {[%clk 0:03:02.1]} 4... Nf6 {[%clk 0:02:58.9]} 5. Nc3 {[%clk 0:03:01]}
5... e6 {[%clk 0:02:59.2]} 6. Nxc6 {[%clk 0:03:00.1]} 6... bxc6 {[%clk
0:02:58.9]} 7. e5 {[%clk 0:03:00.5]} 7... Nd5 {[%clk 0:02:59.1]} 8. Ne4 {[%clk
0:03:01]} 8... Qc7 {[%clk 0:02:58.4]} 9. f4 {[%clk 0:03:01.6]} 9... Qb6 {[%clk
0:02:57.3]} 10. c4 {[%clk 0:03:02.1]} 10... Bb4+ {[%clk 0:02:53.4]} 11. Ke2
{[%clk 0:03:02.5]} 11... f5 {[%clk 0:02:53.1]} 12. exf6 {[%clk 0:03:03.1]} 12...
Nxf6 {[%clk 0:02:53]} 13. Be3 {[%clk 0:03:03.5]} 13... Qd8 {[%clk 0:02:52.4]}
14. Nd6+ {[%clk 0:03:03.8]} 14... Bxd6 {[%clk 0:02:52.9]} 15. Qxd6 {[%clk
0:03:04.3]} 15... Bb7 {[%clk 0:02:22.9]} 16. Rd1 {[%clk 0:02:50.7]} 16... Qa5
{[%clk 0:01:39.9]} 17. g4 {[%clk 0:02:38.1]} 17... Rd8 {[%clk 0:01:24.3]} 18.
Rg1 {[%clk 0:02:22.6]} 18... Qxa2 {[%clk 0:00:58.9]} 19. Bc5 {[%clk 0:01:28.5]}
19... Qxc4+ {[%clk 0:00:51.2]} 20. Ke1 {[%clk 0:01:21]} 20... Qe4+ {[%clk
0:00:31.6]} 21. Kf2 {[%clk 0:01:20.2]} 21... Ng8 {[%clk 0:00:21.8]} 22. Qf8#
{[%clk 0:01:18]} 1-0